[Event "Titled Tuesday Blitz July 18 Early 2023"]
[White "Atakhan, Abtin"]
[Black "Ibarra Jerez, Jose Carlos"]
[WhiteFideId "22502203"]
[BlackFideId "2226332"]
[WhiteElo "2723"]
[BlackElo "2948"]
[Result "1-0"]
[Round "4"]
[TimeControl "180+2"]
[Date "2023.07.18"]
[WhiteClock "0:00:05"]
[BlackClock "0:00:00"]
[Board "14"]

1. d4 {[%clk 0:03:00]}  Nf6 {[%clk 0:02:59]} 2. c4 {[%clk 0:03:01]}  d6 {[%clk 0:03:00]} 3. Nf3 {[%clk 0:03:01]}  g6 {[%clk 0:03:00]} 4. Nc3 {[%clk 0:03:00]}  Bf5 {[%clk 0:03:00]} 5. g3 {[%clk 0:02:54]}  Ne4 {[%clk 0:02:59]} 6. Nd5 {[%clk 0:02:50]}  c6 {[%clk 0:02:54]} 7. Ne3 {[%clk 0:02:48]}  Qa5+ {[%clk 0:02:51]} 8. Nd2 {[%clk 0:02:45]}  Bg7 {[%clk 0:02:50]} 9. Bg2 {[%clk 0:02:29]}  Bxd4 {[%clk 0:02:35]} 10. g4 {[%clk 0:02:26]}  Nxf2 {[%clk 0:02:02]} 11. Kxf2 {[%clk 0:02:27]}  Bxe3+ {[%clk 0:01:58]} 12. Kxe3 {[%clk 0:02:27]}  Bxg4 {[%clk 0:01:43]} 13. Kf2 {[%clk 0:02:13]}  Qc5+ {[%clk 0:01:39]} 14. Ke1 {[%clk 0:01:54]}  O-O {[%clk 0:01:33]} 15. Qb3 {[%clk 0:01:51]}  Nd7 {[%clk 0:01:11]} 16. Ne4 {[%clk 0:01:51]}  Qe5 {[%clk 0:01:07]} 17. Qe3 {[%clk 0:01:30]}  Be6 {[%clk 0:01:00]} 18. Qh6 {[%clk 0:01:19]}  Bxc4 {[%clk 0:00:52]} 19. Bd2 {[%clk 0:01:16]}  Qg7 {[%clk 0:00:45]} 20. Qh4 {[%clk 0:01:05]}  Bd5 {[%clk 0:00:39]} 21. Bc3 {[%clk 0:00:59]}  f6 {[%clk 0:00:37]} 22. Rg1 {[%clk 0:00:48]}  Ne5 {[%clk 0:00:36]} 23. Qf4 {[%clk 0:00:41]}  Kh8 {[%clk 0:00:34]} 24. h4 {[%clk 0:00:41]}  Qf7 {[%clk 0:00:28]} 25. Bh1 {[%clk 0:00:38]}  Qe6 {[%clk 0:00:28]} 26. Qg3 {[%clk 0:00:22]}  Rg8 {[%clk 0:00:21]} 27. a3 {[%clk 0:00:22]}  Bb3 {[%clk 0:00:18]} 28. Kf2 {[%clk 0:00:18]}  Bd5 {[%clk 0:00:17]} 29. Raf1 {[%clk 0:00:17]}  h5 {[%clk 0:00:12]} 30. Ke1 {[%clk 0:00:16]}  Kh7 {[%clk 0:00:13]} 31. Qe3 {[%clk 0:00:15]}  Raf8 {[%clk 0:00:12]} 32. Bd2 {[%clk 0:00:14]}  Nf7 {[%clk 0:00:08]} 33. Qf4 {[%clk 0:00:11]}  Qe5 {[%clk 0:00:07]} 34. Qe3 {[%clk 0:00:07]}  Qxb2 {[%clk 0:00:07]} 35. Bc3 {[%clk 0:00:07]}  Qxa3 {[%clk 0:00:06]} 36. Nd2 {[%clk 0:00:05]}  Qc1+ {[%clk 0:00:05]} 37. Kf2 {[%clk 0:00:05]}  Qa3 {[%clk 0:00:06]} 38. Bxd5 {[%clk 0:00:05]}  cxd5 {[%clk 0:00:05]} 39. Ra1 {[%clk 0:00:06]}  Qc5 {[%clk 0:00:05]} 40. Bd4 {[%clk 0:00:06]}  Qc8 {[%clk 0:00:06]} 41. Qxe7 {[%clk 0:00:05]}  Qf5+ {[%clk 0:00:06]} 42. Nf3 {[%clk 0:00:05]}  Kg7 {[%clk 0:00:05]} 43. Rg5 {[%clk 0:00:05]}  Qe4 {[%clk 0:00:00]} 44. Qxf6+ {[%clk 0:00:05]} 1-0


[Site "https://www.chess.com"]

[Event "Titled Tuesday Blitz July 18 Early 2023"]
[White "Gholami Orimi, Mahdi"]
[Black "Jeet, Jain"]
[WhiteFideId "12558486"]
[BlackFideId "5073022"]
[WhiteElo "2927"]
[BlackElo "2653"]
[Result "1-0"]
[Round "4"]
[TimeControl "180+2"]
[Date "2023.07.18"]
[WhiteClock "0:00:40"]
[BlackClock "0:00:06"]
[Board "17"]

1. d4 {[%clk 0:03:00]}  d6 {[%clk 0:02:47]} 2. Nf3 {[%clk 0:03:00]}  Nd7 {[%clk 0:02:47]} 3. Nc3 {[%clk 0:02:58]}  e5 {[%clk 0:02:44]} 4. e4 {[%clk 0:02:59]}  Ngf6 {[%clk 0:02:44]} 5. a4 {[%clk 0:02:58]}  c6 {[%clk 0:02:42]} 6. Bc4 {[%clk 0:02:59]}  Be7 {[%clk 0:02:40]} 7. a5 {[%clk 0:02:59]}  h6 {[%clk 0:02:39]} 8. O-O {[%clk 0:02:59]}  O-O {[%clk 0:02:36]} 9. Re1 {[%clk 0:02:56]}  Qc7 {[%clk 0:02:35]} 10. h3 {[%clk 0:02:56]}  Re8 {[%clk 0:02:34]} 11. Bd2 {[%clk 0:02:16]}  Nf8 {[%clk 0:02:27]} 12. Qb1 {[%clk 0:02:15]}  Be6 {[%clk 0:02:23]} 13. Qa2 {[%clk 0:02:14]}  Bxc4 {[%clk 0:02:20]} 14. Qxc4 {[%clk 0:02:15]}  Ng6 {[%clk 0:02:17]} 15. b4 {[%clk 0:02:13]}  Rac8 {[%clk 0:02:15]} 16. dxe5 {[%clk 0:02:11]}  dxe5 {[%clk 0:02:11]} 17. Be3 {[%clk 0:02:12]}  b5 {[%clk 0:01:55]} 18. axb6 {[%clk 0:01:41]}  axb6 {[%clk 0:01:53]} 19. Ra6 {[%clk 0:01:42]}  b5 {[%clk 0:01:50]} 20. Qb3 {[%clk 0:01:42]}  Ra8 {[%clk 0:01:43]} 21. Rea1 {[%clk 0:01:39]}  Rxa6 {[%clk 0:01:40]} 22. Rxa6 {[%clk 0:01:40]}  Qc8 {[%clk 0:01:15]} 23. Ra7 {[%clk 0:01:33]}  Nh5 {[%clk 0:01:15]} 24. Ne2 {[%clk 0:01:23]}  Qe6 {[%clk 0:00:59]} 25. Qxe6 {[%clk 0:01:07]}  fxe6 {[%clk 0:01:00]} 26. c3 {[%clk 0:01:04]}  Rc8 {[%clk 0:00:56]} 27. Nxe5 {[%clk 0:01:00]}  Nxe5 {[%clk 0:00:39]} 28. Rxe7 {[%clk 0:00:59]}  Nc4 {[%clk 0:00:34]} 29. Bd4 {[%clk 0:00:54]}  Kf8 {[%clk 0:00:24]} 30. Bc5 {[%clk 0:00:54]}  Kg8 {[%clk 0:00:19]} 31. g4 {[%clk 0:00:44]}  Nf6 {[%clk 0:00:19]} 32. Rxe6 {[%clk 0:00:43]}  Nd7 {[%clk 0:00:18]} 33. Nd4 {[%clk 0:00:41]}  Nxc5 {[%clk 0:00:17]} 34. bxc5 {[%clk 0:00:42]}  Na5 {[%clk 0:00:16]} 35. Re7 {[%clk 0:00:41]}  Nb3 {[%clk 0:00:12]} 36. Ne6 {[%clk 0:00:40]}  Nxc5 {[%clk 0:00:06]} 37. Nxc5 {[%clk 0:00:40]} 1-0


[Site "https://www.chess.com"]

[Event "Titled Tuesday Blitz July 18 Early 2023"]
[White "Antipov, Mikhail Al."]
[Black "Geivondian, Arman"]
[WhiteFideId "4107012"]
[BlackFideId "24102032"]
[WhiteElo "2909"]
[BlackElo "2576"]
[Result "1-0"]
[Round "4"]
[TimeControl "180+2"]
[Date "2023.07.18"]
[WhiteClock "0:00:27"]
[BlackClock "0:00:36"]
[Board "20"]

1. e4 {[%clk 0:03:00]}  c6 {[%clk 0:03:00]} 2. d4 {[%clk 0:03:00]}  d5 {[%clk 0:03:01]} 3. exd5 {[%clk 0:03:01]}  cxd5 {[%clk 0:03:02]} 4. Bd3 {[%clk 0:03:02]}  Nc6 {[%clk 0:03:02]} 5. c3 {[%clk 0:03:03]}  Nf6 {[%clk 0:03:03]} 6. h3 {[%clk 0:03:03]}  g6 {[%clk 0:03:03]} 7. Nf3 {[%clk 0:03:04]}  Bf5 {[%clk 0:03:04]} 8. Be2 {[%clk 0:03:05]}  Bg7 {[%clk 0:03:05]} 9. O-O {[%clk 0:03:06]}  O-O {[%clk 0:03:06]} 10. Re1 {[%clk 0:03:06]}  e6 {[%clk 0:03:06]} 11. Be3 {[%clk 0:03:06]}  h6 {[%clk 0:03:04]} 12. Bb5 {[%clk 0:02:52]}  Rc8 {[%clk 0:03:01]} 13. Nbd2 {[%clk 0:02:50]}  g5 {[%clk 0:03:00]} 14. Bxc6 {[%clk 0:02:46]}  Rxc6 {[%clk 0:03:00]} 15. Ne5 {[%clk 0:02:46]}  Rc8 {[%clk 0:03:01]} 16. f4 {[%clk 0:02:37]}  gxf4 {[%clk 0:02:56]} 17. Bxf4 {[%clk 0:02:38]}  Ne4 {[%clk 0:02:56]} 18. Nxe4 {[%clk 0:02:14]}  Bxe4 {[%clk 0:02:57]} 19. Ng4 {[%clk 0:02:09]}  Kh7 {[%clk 0:02:40]} 20. Qd2 {[%clk 0:01:58]}  h5 {[%clk 0:02:37]} 21. Nf2 {[%clk 0:01:54]}  Bg6 {[%clk 0:02:34]} 22. Re3 {[%clk 0:01:51]}  Rg8 {[%clk 0:02:32]} 23. Kh1 {[%clk 0:01:40]}  b5 {[%clk 0:02:24]} 24. Nd3 {[%clk 0:01:23]}  Be4 {[%clk 0:02:21]} 25. Nc5 {[%clk 0:01:18]}  Bh6 {[%clk 0:01:45]} 26. Re2 {[%clk 0:00:41]}  Qh4 {[%clk 0:00:45]} 27. Bxh6 {[%clk 0:00:37]}  Qxh3+ {[%clk 0:00:45]} 28. Kg1 {[%clk 0:00:37]}  Bxg2 {[%clk 0:00:46]} 29. Rxg2 {[%clk 0:00:27]}  Rxg2+ {[%clk 0:00:47]} 30. Qxg2 {[%clk 0:00:27]}  Rg8 {[%clk 0:00:48]} 31. Bg5 {[%clk 0:00:27]}  Qe3+ {[%clk 0:00:36]} 32. Bxe3 {[%clk 0:00:27]} 1-0


[Site "https://www.chess.com"]

[Event "Titled Tuesday Blitz July 18 Early 2023"]
[White "AndresDelgado77"]
[Black "Galchenko, Matvey"]
[BlackFideId "24175480"]
[WhiteElo "2346"]
[BlackElo "2884"]
[Result "1-0"]
[Round "4"]
[TimeControl "180+2"]
[Date "2023.07.18"]
[WhiteClock "0:00:04"]
[BlackClock "0:00:03"]
[Board "21"]

1. e4 {[%clk 0:03:00]}  e6 {[%clk 0:02:57]} 2. d4 {[%clk 0:02:59]}  d5 {[%clk 0:02:58]} 3. e5 {[%clk 0:02:59]}  c5 {[%clk 0:02:58]} 4. c3 {[%clk 0:02:59]}  Qb6 {[%clk 0:02:59]} 5. Nf3 {[%clk 0:03:00]}  Nc6 {[%clk 0:03:00]} 6. Bd3 {[%clk 0:02:58]}  cxd4 {[%clk 0:03:00]} 7. a3 {[%clk 0:02:56]}  Bd7 {[%clk 0:02:54]} 8. O-O {[%clk 0:02:56]}  Rc8 {[%clk 0:02:51]} 9. Kh1 {[%clk 0:02:55]}  Nge7 {[%clk 0:02:51]} 10. cxd4 {[%clk 0:02:54]}  Nf5 {[%clk 0:02:40]} 11. Bxf5 {[%clk 0:02:51]}  exf5 {[%clk 0:02:41]} 12. Nc3 {[%clk 0:02:52]}  Be6 {[%clk 0:02:42]} 13. Na4 {[%clk 0:02:46]}  Qd8 {[%clk 0:02:40]} 14. b4 {[%clk 0:02:46]}  Be7 {[%clk 0:02:38]} 15. Bb2 {[%clk 0:02:43]}  O-O {[%clk 0:02:19]} 16. Rc1 {[%clk 0:02:42]}  b6 {[%clk 0:01:58]} 17. Ne1 {[%clk 0:02:36]}  f4 {[%clk 0:01:48]} 18. Nd3 {[%clk 0:02:30]}  Bg5 {[%clk 0:01:35]} 19. f3 {[%clk 0:02:25]}  Qd7 {[%clk 0:01:34]} 20. Nc3 {[%clk 0:02:18]}  Nxd4 {[%clk 0:01:30]} 21. Ne2 {[%clk 0:01:43]}  Nxe2 {[%clk 0:01:23]} 22. Qxe2 {[%clk 0:01:44]}  Qb5 {[%clk 0:01:22]} 23. Bd4 {[%clk 0:01:21]}  Rc4 {[%clk 0:01:13]} 24. Nb2 {[%clk 0:01:11]}  Rxb4 {[%clk 0:01:11]} 25. Qd2 {[%clk 0:01:03]}  Rb3 {[%clk 0:01:08]} 26. a4 {[%clk 0:00:57]}  Qb4 {[%clk 0:01:01]} 27. Qf2 {[%clk 0:00:51]}  Bh4 {[%clk 0:00:52]} 28. Qxh4 {[%clk 0:00:31]}  Qxd4 {[%clk 0:00:51]} 29. Nd1 {[%clk 0:00:27]}  Qxe5 {[%clk 0:00:52]} 30. Nf2 {[%clk 0:00:26]}  Rb2 {[%clk 0:00:52]} 31. Nd3 {[%clk 0:00:25]}  Qd4 {[%clk 0:00:52]} 32. Nxb2 {[%clk 0:00:25]}  Qxb2 {[%clk 0:00:53]} 33. Qe7 {[%clk 0:00:23]}  a5 {[%clk 0:00:49]} 34. Qd6 {[%clk 0:00:20]}  g5 {[%clk 0:00:40]} 35. Rb1 {[%clk 0:00:20]}  Qc2 {[%clk 0:00:28]} 36. Rxb6 {[%clk 0:00:16]}  Qxa4 {[%clk 0:00:26]} 37. Rb8 {[%clk 0:00:16]}  Rxb8 {[%clk 0:00:23]} 38. Qxb8+ {[%clk 0:00:16]}  Kg7 {[%clk 0:00:24]} 39. Qe5+ {[%clk 0:00:17]}  Kg6 {[%clk 0:00:25]} 40. h4 {[%clk 0:00:16]}  h6 {[%clk 0:00:24]} 41. hxg5 {[%clk 0:00:15]}  hxg5 {[%clk 0:00:24]} 42. Rb1 {[%clk 0:00:12]}  Qc6 {[%clk 0:00:11]} 43. Rb8 {[%clk 0:00:11]}  f6 {[%clk 0:00:11]} 44. Qd4 {[%clk 0:00:06]}  a4 {[%clk 0:00:11]} 45. Rb6 {[%clk 0:00:03]}  Qc1+ {[%clk 0:00:11]} 46. Kh2 {[%clk 0:00:03]}  Qe1 {[%clk 0:00:07]} 47. Qd3+ {[%clk 0:00:02]}  Bf5 {[%clk 0:00:05]} 48. Qxd5 {[%clk 0:00:02]}  Qe7 {[%clk 0:00:03]} 49. Qg8+ {[%clk 0:00:02]}  Qg7 {[%clk 0:00:04]} 50. Qxg7+ {[%clk 0:00:02]}  Kxg7 {[%clk 0:00:04]} 51. Ra6 {[%clk 0:00:02]}  Bc2 {[%clk 0:00:04]} 52. Kg1 {[%clk 0:00:03]}  f5 {[%clk 0:00:04]} 53. Kf2 {[%clk 0:00:02]}  g4 {[%clk 0:00:05]} 54. Ke1 {[%clk 0:00:03]}  Kf7 {[%clk 0:00:03]} 55. Kd2 {[%clk 0:00:03]}  Ke7 {[%clk 0:00:03]} 56. Kxc2 {[%clk 0:00:03]}  Kf7 {[%clk 0:00:02]} 57. Rxa4 {[%clk 0:00:03]}  Ke6 {[%clk 0:00:03]} 58. Rxf4 {[%clk 0:00:04]}  Ke5 {[%clk 0:00:03]} 59. Ra4 {[%clk 0:00:04]}  gxf3 {[%clk 0:00:03]} 60. gxf3 {[%clk 0:00:04]} 1-0


[Site "https://www.chess.com"]

[Event "Titled Tuesday Blitz July 18 Early 2023"]
[White "Carlsen, Magnus"]
[Black "Mogirzan, Matei-Valeriu"]
[WhiteFideId "1503014"]
[BlackFideId "1257455"]
[WhiteElo "3279"]
[BlackElo "2558"]
[Result "1-0"]
[Round "4"]
[TimeControl "180+2"]
[Date "2023.07.18"]
[WhiteClock "0:01:40"]
[BlackClock "0:00:00"]
[Board "22"]

1. e4 {[%clk 0:03:00]}  e5 {[%clk 0:02:57]} 2. f4 {[%clk 0:03:00]}  d5 {[%clk 0:02:54]} 3. Nf3 {[%clk 0:02:58]}  dxe4 {[%clk 0:02:47]} 4. Nxe5 {[%clk 0:02:58]}  Nf6 {[%clk 0:02:48]} 5. Bc4 {[%clk 0:02:56]}  Be6 {[%clk 0:02:46]} 6. Bxe6 {[%clk 0:02:56]}  fxe6 {[%clk 0:02:47]} 7. Qe2 {[%clk 0:02:56]}  Nbd7 {[%clk 0:02:32]} 8. Nc3 {[%clk 0:02:55]}  Be7 {[%clk 0:02:24]} 9. Nxd7 {[%clk 0:02:50]}  Qxd7 {[%clk 0:02:22]} 10. Nxe4 {[%clk 0:02:51]}  O-O-O {[%clk 0:02:18]} 11. d3 {[%clk 0:02:49]}  Rhe8 {[%clk 0:02:07]} 12. O-O {[%clk 0:02:42]}  h6 {[%clk 0:01:56]} 13. Bd2 {[%clk 0:02:38]}  Qc6 {[%clk 0:01:51]} 14. Bc3 {[%clk 0:02:38]}  Nd5 {[%clk 0:01:46]} 15. Bxg7 {[%clk 0:02:16]}  Rg8 {[%clk 0:01:40]} 16. Be5 {[%clk 0:02:16]}  Qb6+ {[%clk 0:01:22]} 17. Kh1 {[%clk 0:02:16]}  Ne3 {[%clk 0:01:18]} 18. Rf2 {[%clk 0:02:16]}  Ng4 {[%clk 0:01:13]} 19. Rf3 {[%clk 0:02:16]}  Nxe5 {[%clk 0:01:08]} 20. fxe5 {[%clk 0:02:17]}  Qxb2 {[%clk 0:01:08]} 21. Raf1 {[%clk 0:02:16]}  Qxe5 {[%clk 0:01:07]} 22. g3 {[%clk 0:02:14]}  Qd5 {[%clk 0:01:03]} 23. a4 {[%clk 0:02:14]}  Rgf8 {[%clk 0:01:00]} 24. Rxf8 {[%clk 0:02:13]}  Rxf8 {[%clk 0:01:01]} 25. Rxf8+ {[%clk 0:02:13]}  Bxf8 {[%clk 0:01:02]} 26. Kg2 {[%clk 0:02:12]}  Be7 {[%clk 0:00:54]} 27. Qe3 {[%clk 0:02:11]}  Qc6 {[%clk 0:00:47]} 28. Qxh6 {[%clk 0:02:10]}  Qxc2+ {[%clk 0:00:46]} 29. Kh3 {[%clk 0:02:10]}  Kd7 {[%clk 0:00:41]} 30. Qh7 {[%clk 0:02:10]}  Qe2 {[%clk 0:00:31]} 31. Qf7 {[%clk 0:02:10]}  b6 {[%clk 0:00:26]} 32. Nf6+ {[%clk 0:02:06]}  Kd6 {[%clk 0:00:26]} 33. Ne8+ {[%clk 0:02:07]}  Kd7 {[%clk 0:00:25]} 34. Nxc7 {[%clk 0:02:04]}  Kxc7 {[%clk 0:00:17]} 35. Qxe7+ {[%clk 0:02:03]}  Kc8 {[%clk 0:00:13]} 36. Qf7 {[%clk 0:01:51]}  e5 {[%clk 0:00:10]} 37. Qf5+ {[%clk 0:01:47]}  Kc7 {[%clk 0:00:08]} 38. g4 {[%clk 0:01:46]}  Qe3+ {[%clk 0:00:07]} 39. Kh4 {[%clk 0:01:46]}  Qh6+ {[%clk 0:00:06]} 40. Kg3 {[%clk 0:01:46]}  Qe3+ {[%clk 0:00:05]} 41. Qf3 {[%clk 0:01:47]}  Qg1+ {[%clk 0:00:05]} 42. Kh3 {[%clk 0:01:47]}  Qc1 {[%clk 0:00:03]} 43. Qe4 {[%clk 0:01:43]}  Qh6+ {[%clk 0:00:03]} 44. Kg3 {[%clk 0:01:43]}  Qf6 {[%clk 0:00:03]} 45. h4 {[%clk 0:01:43]}  Qg7 {[%clk 0:00:01]} 46. g5 {[%clk 0:01:42]}  Qf7 {[%clk 0:00:01]} 47. Qxe5+ {[%clk 0:01:42]}  Kb7 {[%clk 0:00:02]} 48. Qe4+ {[%clk 0:01:41]}  Ka6 {[%clk 0:00:02]} 49. g6 {[%clk 0:01:42]}  Qf1 {[%clk 0:00:02]} 50. Qc4+ {[%clk 0:01:39]}  Kb7 {[%clk 0:00:00]} 51. Qf7+ {[%clk 0:01:40]} 1-0


[Site "https://www.chess.com"]

[Event "Titled Tuesday Blitz July 18 Early 2023"]
[White "He, Anthony"]
[Black "Aldokhin, Ivan"]
[WhiteFideId "2088215"]
[BlackFideId "24115720"]
[WhiteElo "2942"]
[BlackElo "2662"]
[Result "1-0"]
[Round "4"]
[TimeControl "180+2"]
[Date "2023.07.18"]
[WhiteClock "0:01:02"]
[BlackClock "0:00:02"]
[Board "25"]

1. d4 {[%clk 0:03:00]}  Nf6 {[%clk 0:02:59]} 2. Nc3 {[%clk 0:03:00]}  g6 {[%clk 0:03:00]} 3. Bf4 {[%clk 0:03:01]}  d5 {[%clk 0:02:56]} 4. e3 {[%clk 0:02:57]}  Bg7 {[%clk 0:02:52]} 5. h4 {[%clk 0:02:58]}  a6 {[%clk 0:02:37]} 6. h5 {[%clk 0:02:55]}  Nxh5 {[%clk 0:02:35]} 7. Rxh5 {[%clk 0:02:55]}  gxh5 {[%clk 0:02:35]} 8. Qxh5 {[%clk 0:02:56]}  Be6 {[%clk 0:02:24]} 9. Nf3 {[%clk 0:02:56]}  h6 {[%clk 0:02:23]} 10. Bd3 {[%clk 0:02:55]}  Nc6 {[%clk 0:02:22]} 11. O-O-O {[%clk 0:02:51]}  Qd7 {[%clk 0:02:22]} 12. Na4 {[%clk 0:02:38]}  b6 {[%clk 0:02:01]} 13. Nc3 {[%clk 0:02:36]}  Bg4 {[%clk 0:01:52]} 14. Qh2 {[%clk 0:02:36]}  Nb4 {[%clk 0:01:42]} 15. Be2 {[%clk 0:02:22]}  Bf5 {[%clk 0:01:30]} 16. Rd2 {[%clk 0:02:00]}  c5 {[%clk 0:01:22]} 17. Ne5 {[%clk 0:01:51]}  Bxe5 {[%clk 0:01:19]} 18. Bxe5 {[%clk 0:01:52]}  Rg8 {[%clk 0:01:15]} 19. dxc5 {[%clk 0:01:42]}  bxc5 {[%clk 0:01:02]} 20. e4 {[%clk 0:01:41]}  d4 {[%clk 0:00:23]} 21. exf5 {[%clk 0:01:29]}  Qxf5 {[%clk 0:00:23]} 22. Nd1 {[%clk 0:01:22]}  Nxa2+ {[%clk 0:00:11]} 23. Kb1 {[%clk 0:01:22]}  Nb4 {[%clk 0:00:11]} 24. Bc4 {[%clk 0:01:16]}  Qg5 {[%clk 0:00:10]} 25. f4 {[%clk 0:01:16]}  Qg3 {[%clk 0:00:08]} 26. Qh5 {[%clk 0:01:08]}  Qe1 {[%clk 0:00:07]} 27. Kc1 {[%clk 0:01:04]}  Rd8 {[%clk 0:00:04]} 28. Qxf7+ {[%clk 0:01:02]}  Kd7 {[%clk 0:00:04]} 29. Qe6+ {[%clk 0:01:02]}  Ke8 {[%clk 0:00:03]} 30. Qxg8+ {[%clk 0:01:03]}  Kd7 {[%clk 0:00:04]} 31. Be6+ {[%clk 0:01:02]}  Kc6 {[%clk 0:00:04]} 32. Qxd8 {[%clk 0:01:02]}  Na2+ {[%clk 0:00:02]} 33. Bxa2 {[%clk 0:01:02]} 1-0


[Site "https://www.chess.com"]

[Event "Titled Tuesday Blitz July 18 Early 2023"]
[White "Spata, German"]
[Black "Zhigalko, Sergei"]
[WhiteFideId "113026"]
[BlackFideId "13502956"]
[WhiteElo "2656"]
[BlackElo "2880"]
[Result "0-1"]
[Round "4"]
[TimeControl "180+2"]
[Date "2023.07.18"]
[WhiteClock "0:00:06"]
[BlackClock "0:00:04"]
[Board "27"]

1. Nf3 {[%clk 0:03:00]}  d5 {[%clk 0:02:57]} 2. b3 {[%clk 0:03:00]}  Bg4 {[%clk 0:02:54]} 3. Bb2 {[%clk 0:03:00]}  Nd7 {[%clk 0:02:52]} 4. e3 {[%clk 0:02:54]}  e5 {[%clk 0:02:49]} 5. Be2 {[%clk 0:02:54]}  Bd6 {[%clk 0:02:45]} 6. d4 {[%clk 0:02:53]}  Bxf3 {[%clk 0:02:38]} 7. Bxf3 {[%clk 0:02:53]}  e4 {[%clk 0:02:38]} 8. Be2 {[%clk 0:02:53]}  c6 {[%clk 0:02:38]} 9. c4 {[%clk 0:02:54]}  f5 {[%clk 0:02:03]} 10. Nc3 {[%clk 0:02:46]}  Ngf6 {[%clk 0:01:56]} 11. cxd5 {[%clk 0:02:46]}  cxd5 {[%clk 0:01:47]} 12. Nb5 {[%clk 0:02:46]}  Bb8 {[%clk 0:01:34]} 13. Ba3 {[%clk 0:02:23]}  Nf8 {[%clk 0:01:32]} 14. Rc1 {[%clk 0:02:02]}  Ne6 {[%clk 0:01:23]} 15. O-O {[%clk 0:01:46]}  a6 {[%clk 0:01:16]} 16. Nc3 {[%clk 0:01:46]}  b5 {[%clk 0:01:11]} 17. Bc5 {[%clk 0:01:42]}  Nxc5 {[%clk 0:01:02]} 18. dxc5 {[%clk 0:01:43]}  O-O {[%clk 0:01:01]} 19. b4 {[%clk 0:01:41]}  f4 {[%clk 0:00:45]} 20. Bg4 {[%clk 0:01:15]}  Re8 {[%clk 0:00:09]} 21. Bh3 {[%clk 0:00:39]}  Ra7 {[%clk 0:00:06]} 22. Ne2 {[%clk 0:00:35]}  f3 {[%clk 0:00:04]} 23. gxf3 {[%clk 0:00:20]}  exf3 {[%clk 0:00:05]} 24. Ng3 {[%clk 0:00:20]}  Ne4 {[%clk 0:00:04]} 25. Nxe4 {[%clk 0:00:13]}  dxe4 {[%clk 0:00:04]} 26. Qxd8 {[%clk 0:00:13]}  Rxd8 {[%clk 0:00:04]} 27. Be6+ {[%clk 0:00:12]}  Kf8 {[%clk 0:00:04]} 28. Rfd1 {[%clk 0:00:12]}  Ke7 {[%clk 0:00:03]} 29. Bf5 {[%clk 0:00:10]}  Rf8 {[%clk 0:00:01]} 30. Bxe4 {[%clk 0:00:10]}  Be5 {[%clk 0:00:02]} 31. c6 {[%clk 0:00:10]}  Rc7 {[%clk 0:00:02]} 32. a3 {[%clk 0:00:09]}  Rf6 {[%clk 0:00:02]} 33. Rd3 {[%clk 0:00:09]}  g5 {[%clk 0:00:02]} 34. Kf1 {[%clk 0:00:09]}  g4 {[%clk 0:00:02]} 35. Rcd1 {[%clk 0:00:09]}  Rh6 {[%clk 0:00:02]} 36. Rd7+ {[%clk 0:00:09]}  Kf6 {[%clk 0:00:02]} 37. Rxc7 {[%clk 0:00:09]}  Bxc7 {[%clk 0:00:03]} 38. Bxf3 {[%clk 0:00:08]}  gxf3 {[%clk 0:00:03]} 39. Rd7 {[%clk 0:00:07]}  Rxh2 {[%clk 0:00:03]} 40. Ke1 {[%clk 0:00:08]}  Be5 {[%clk 0:00:02]} 41. c7 {[%clk 0:00:08]}  Bxc7 {[%clk 0:00:02]} 42. Rxc7 {[%clk 0:00:08]}  Rh1+ {[%clk 0:00:02]} 43. Kd2 {[%clk 0:00:09]}  Rf1 {[%clk 0:00:03]} 44. e4 {[%clk 0:00:09]}  Rxf2+ {[%clk 0:00:03]} 45. Ke3 {[%clk 0:00:09]}  Ra2 {[%clk 0:00:03]} 46. Kxf3 {[%clk 0:00:09]}  Rxa3+ {[%clk 0:00:04]} 47. Kf4 {[%clk 0:00:10]}  h5 {[%clk 0:00:03]} 48. Rc6+ {[%clk 0:00:10]}  Ke7 {[%clk 0:00:03]} 49. Ke5 {[%clk 0:00:11]}  h4 {[%clk 0:00:03]} 50. Rc7+ {[%clk 0:00:11]}  Kd8 {[%clk 0:00:03]} 51. Rh7 {[%clk 0:00:12]}  h3 {[%clk 0:00:03]} 52. Kd6 {[%clk 0:00:12]}  Rd3+ {[%clk 0:00:04]} 53. Ke6 {[%clk 0:00:12]}  Rb3 {[%clk 0:00:02]} 54. e5 {[%clk 0:00:12]}  Rxb4 {[%clk 0:00:02]} 55. Kd6 {[%clk 0:00:13]}  Rd4+ {[%clk 0:00:02]} 56. Ke6 {[%clk 0:00:12]}  Rd3 {[%clk 0:00:02]} 57. Ra7 {[%clk 0:00:10]}  h2 {[%clk 0:00:02]} 58. Rh7 {[%clk 0:00:09]}  Rd2 {[%clk 0:00:03]} 59. Rh8+ {[%clk 0:00:10]}  Kc7 {[%clk 0:00:03]} 60. Ke7 {[%clk 0:00:10]}  b4 {[%clk 0:00:03]} 61. e6 {[%clk 0:00:11]}  b3 {[%clk 0:00:03]} 62. Kf7 {[%clk 0:00:11]}  Rf2+ {[%clk 0:00:03]} 63. Kg6 {[%clk 0:00:11]}  Re2 {[%clk 0:00:04]} 64. Kf7 {[%clk 0:00:11]}  b2 {[%clk 0:00:04]} 65. e7 {[%clk 0:00:06]}  b1=Q {[%clk 0:00:04]} 0-1


[Site "https://www.chess.com"]